[Event "Titled Tuesday Blitz May 4 2021"]
[White "Volkov, Maksim"]
[Black "Samarth, J Rao"]
[WhiteFideId "54123070"]
[BlackFideId "46652370"]
[WhiteElo "2113"]
[BlackElo "1514"]
[Result "0-1"]
[Round "01"]
[TimeControl "180+1"]
[Date "2021.05.04"]
[WhiteClock "0:00:25"]
[BlackClock "0:00:11"]

1. d4 {[%clk 0:02:59]}  d5 {[%clk 0:02:56]} 2. c4 {[%clk 0:02:58]}  e6 {[%clk 0:02:55]} 3. g3 {[%clk 0:02:56]}  Nf6 {[%clk 0:02:54]} 4. Nf3 {[%clk 0:02:55]}  Be7 {[%clk 0:02:54]} 5. Bg2 {[%clk 0:02:55]}  O-O {[%clk 0:02:54]} 6. O-O {[%clk 0:02:55]}  dxc4 {[%clk 0:02:53]} 7. Na3 {[%clk 0:02:50]}  Bxa3 {[%clk 0:02:39]} 8. bxa3 {[%clk 0:02:49]}  Nbd7 {[%clk 0:02:31]} 9. Rb1 {[%clk 0:02:30]}  Nb6 {[%clk 0:02:26]} 10. Qc2 {[%clk 0:02:26]}  Bd7 {[%clk 0:02:19]} 11. Ne5 {[%clk 0:02:25]}  Ba4 {[%clk 0:02:19]} 12. Qb2 {[%clk 0:02:25]}  c6 {[%clk 0:02:16]} 13. e3 {[%clk 0:02:18]}  Bb5 {[%clk 0:02:11]} 14. Rd1 {[%clk 0:02:15]}  Nfd5 {[%clk 0:02:03]} 15. Bxd5 {[%clk 0:01:40]}  exd5 {[%clk 0:01:45]} 16. Bd2 {[%clk 0:01:37]}  f6 {[%clk 0:01:41]} 17. Nf3 {[%clk 0:01:37]}  Na4 {[%clk 0:01:36]} 18. Qc2 {[%clk 0:01:33]}  c3 {[%clk 0:01:21]} 19. Be1 {[%clk 0:01:33]}  Nb2 {[%clk 0:01:20]} 20. Rdc1 {[%clk 0:01:20]}  Bd3 {[%clk 0:01:19]} 21. Qxc3 {[%clk 0:01:19]}  Bxb1 {[%clk 0:01:19]} 22. Rxb1 {[%clk 0:01:17]}  Na4 {[%clk 0:01:16]} 23. Qc2 {[%clk 0:01:12]}  Nb6 {[%clk 0:01:15]} 24. a4 {[%clk 0:01:12]}  Qd7 {[%clk 0:01:09]} 25. a5 {[%clk 0:01:09]}  Nc4 {[%clk 0:01:04]} 26. Bb4 {[%clk 0:01:09]}  Rfe8 {[%clk 0:01:03]} 27. Nd2 {[%clk 0:01:01]}  Nxd2 {[%clk 0:00:44]} 28. Qxd2 {[%clk 0:01:02]}  Qf5 {[%clk 0:00:42]} 29. Rb2 {[%clk 0:01:00]}  b5 {[%clk 0:00:38]} 30. Rc2 {[%clk 0:00:56]}  Qe6 {[%clk 0:00:37]} 31. Qc1 {[%clk 0:00:55]}  Rac8 {[%clk 0:00:36]} 32. h4 {[%clk 0:00:52]}  f5 {[%clk 0:00:33]} 33. Bc5 {[%clk 0:00:49]}  a6 {[%clk 0:00:33]} 34. Bb4 {[%clk 0:00:49]}  h6 {[%clk 0:00:26]} 35. Kh2 {[%clk 0:00:49]}  Kf7 {[%clk 0:00:22]} 36. a3 {[%clk 0:00:46]}  Rh8 {[%clk 0:00:21]} 37. Qf1 {[%clk 0:00:44]}  g5 {[%clk 0:00:21]} 38. h5 {[%clk 0:00:39]}  Qe4 {[%clk 0:00:20]} 39. Qe2 {[%clk 0:00:38]}  f4 {[%clk 0:00:17]} 40. Bd6 {[%clk 0:00:32]}  f3 {[%clk 0:00:14]} 41. Qd1 {[%clk 0:00:31]}  Qg4 {[%clk 0:00:15]} 42. Kg1 {[%clk 0:00:31]}  Qxh5 {[%clk 0:00:13]} 43. Be5 {[%clk 0:00:29]}  Rhf8 {[%clk 0:00:11]} 44. Rc3 {[%clk 0:00:29]}  Ke6 {[%clk 0:00:10]} 45. Qf1 {[%clk 0:00:29]}  Qg4 {[%clk 0:00:09]} 46. Kh2 {[%clk 0:00:28]}  h5 {[%clk 0:00:09]} 47. Qh3 {[%clk 0:00:27]}  Qxh3+ {[%clk 0:00:09]} 48. Kxh3 {[%clk 0:00:28]}  Kf5 {[%clk 0:00:10]} 49. Rc5 {[%clk 0:00:27]}  Ke4 {[%clk 0:00:09]} 50. Rc3 {[%clk 0:00:27]}  c5 {[%clk 0:00:08]} 51. dxc5 {[%clk 0:00:26]}  Kxe5 {[%clk 0:00:08]} 52. g4 {[%clk 0:00:25]}  hxg4+ {[%clk 0:00:08]} 53. Kxg4 {[%clk 0:00:26]}  d4 {[%clk 0:00:09]} 54. exd4+ {[%clk 0:00:25]}  Kxd4 {[%clk 0:00:10]} 55. Rc1 {[%clk 0:00:26]}  Rxc5 {[%clk 0:00:10]} 56. Rd1+ {[%clk 0:00:27]}  Kc3 {[%clk 0:00:08]} 57. Rc1+ {[%clk 0:00:27]}  Kd4 {[%clk 0:00:09]} 58. Rd1+ {[%clk 0:00:27]}  Kc4 {[%clk 0:00:09]} 59. Rc1+ {[%clk 0:00:27]}  Kd5 {[%clk 0:00:10]} 60. Rd1+ {[%clk 0:00:28]}  Kc6 {[%clk 0:00:10]} 61. Re1 {[%clk 0:00:27]}  Rf4+ {[%clk 0:00:10]} 62. Kg3 {[%clk 0:00:27]}  Rc3 {[%clk 0:00:10]} 63. Re6+ {[%clk 0:00:27]}  Kc5 {[%clk 0:00:11]} 64. Re5+ {[%clk 0:00:27]}  Kd4 {[%clk 0:00:10]} 65. Rxg5 {[%clk 0:00:28]}  Re4 {[%clk 0:00:10]} 66. Rg8 {[%clk 0:00:27]}  Rxa3 {[%clk 0:00:10]} 67. Rd8+ {[%clk 0:00:27]}  Kc3 {[%clk 0:00:11]} 68. Rc8+ {[%clk 0:00:27]}  Rc4 {[%clk 0:00:10]} 69. Ra8 {[%clk 0:00:27]}  Rxa5 {[%clk 0:00:11]} 70. Kxf3 {[%clk 0:00:27]}  b4 {[%clk 0:00:11]} 71. Ke3 {[%clk 0:00:24]}  b3 {[%clk 0:00:11]} 72. Rd8 {[%clk 0:00:24]}  b2 {[%clk 0:00:10]} 73. Rd3+ {[%clk 0:00:25]}  Kc2 {[%clk 0:00:11]} 74. Rd1 {[%clk 0:00:25]} 0-1


[Site "https://www.chess.com"]

[Event "Titled Tuesday Blitz May 4 2021"]
[White "Vypkhaniuk, Ihor"]
[Black "Rakshitta, Ravi"]
[WhiteFideId "14112256"]
[BlackFideId "25073230"]
[WhiteElo "2368"]
[BlackElo "1873"]
[Result "1-0"]
[Round "01"]
[TimeControl "180+1"]
[Date "2021.05.04"]
[WhiteClock "0:00:23"]
[BlackClock "0:00:12"]

1. d4 {[%clk 0:03:00]}  Nf6 {[%clk 0:02:59]} 2. c4 {[%clk 0:03:01]}  Nc6 {[%clk 0:02:58]} 3. Nf3 {[%clk 0:03:00]}  e6 {[%clk 0:02:58]} 4. a3 {[%clk 0:02:59]}  g6 {[%clk 0:02:53]} 5. Nc3 {[%clk 0:02:56]}  Bg7 {[%clk 0:02:53]} 6. e4 {[%clk 0:02:39]}  d6 {[%clk 0:02:50]} 7. d5 {[%clk 0:02:37]}  Ne7 {[%clk 0:02:47]} 8. dxe6 {[%clk 0:02:29]}  fxe6 {[%clk 0:02:46]} 9. e5 {[%clk 0:02:22]}  Ng4 {[%clk 0:02:38]} 10. exd6 {[%clk 0:02:13]}  cxd6 {[%clk 0:02:38]} 11. c5 {[%clk 0:02:05]}  d5 {[%clk 0:02:29]} 12. Qa4+ {[%clk 0:02:04]}  Nc6 {[%clk 0:02:25]} 13. Qxg4 {[%clk 0:02:04]}  O-O {[%clk 0:02:25]} 14. Be2 {[%clk 0:01:43]}  e5 {[%clk 0:02:22]} 15. Qh4 {[%clk 0:01:40]}  Qa5 {[%clk 0:01:47]} 16. b4 {[%clk 0:01:38]}  Qc7 {[%clk 0:01:13]} 17. Nxd5 {[%clk 0:01:13]}  Qd7 {[%clk 0:01:12]} 18. Bc4 {[%clk 0:00:50]}  Kh8 {[%clk 0:01:04]} 19. Ng5 {[%clk 0:00:43]}  h6 {[%clk 0:00:34]} 20. Ne4 {[%clk 0:00:42]}  Kh7 {[%clk 0:00:21]} 21. Bxh6 {[%clk 0:00:34]}  Bxh6 {[%clk 0:00:20]} 22. Nef6+ {[%clk 0:00:32]}  Kg7 {[%clk 0:00:20]} 23. Nxd7 {[%clk 0:00:31]}  Bxd7 {[%clk 0:00:21]} 24. O-O {[%clk 0:00:27]}  Nd4 {[%clk 0:00:19]} 25. Qe7+ {[%clk 0:00:25]}  Kg8 {[%clk 0:00:16]} 26. Nf6+ {[%clk 0:00:22]}  Kh8 {[%clk 0:00:12]} 27. Qh7# {[%clk 0:00:23]} 1-0


[Site "https://www.chess.com"]

[Event "Titled Tuesday Blitz May 4 2021"]
[White "Wagner, Dennis"]
[Black "Torkkola, Henri"]
[WhiteFideId "24650684"]
[BlackFideId "507660"]
[WhiteElo "2355"]
[BlackElo "2137"]
[Result "1-0"]
[Round "01"]
[TimeControl "180+1"]
[Date "2021.05.04"]
[WhiteClock "0:01:38"]
[BlackClock "0:01:03"]

1. e4 {[%clk 0:03:00]}  g6 {[%clk 0:02:59]} 2. d4 {[%clk 0:03:00]}  Bg7 {[%clk 0:02:59]} 3. Nc3 {[%clk 0:03:00]}  d6 {[%clk 0:03:00]} 4. Be3 {[%clk 0:03:01]}  a6 {[%clk 0:03:00]} 5. Qd2 {[%clk 0:03:00]}  b5 {[%clk 0:03:00]} 6. O-O-O {[%clk 0:03:01]}  Bb7 {[%clk 0:03:00]} 7. f3 {[%clk 0:03:01]}  Nd7 {[%clk 0:03:00]} 8. h4 {[%clk 0:03:00]}  h6 {[%clk 0:02:58]} 9. Kb1 {[%clk 0:03:00]}  Nb6 {[%clk 0:02:55]} 10. Bd3 {[%clk 0:02:54]}  Nf6 {[%clk 0:02:55]} 11. g4 {[%clk 0:02:53]}  Nfd7 {[%clk 0:02:54]} 12. Nh3 {[%clk 0:02:28]}  Rc8 {[%clk 0:02:43]} 13. h5 {[%clk 0:02:24]}  g5 {[%clk 0:02:42]} 14. f4 {[%clk 0:02:25]}  gxf4 {[%clk 0:02:41]} 15. Nxf4 {[%clk 0:02:26]}  c5 {[%clk 0:02:39]} 16. dxc5 {[%clk 0:02:25]}  Nxc5 {[%clk 0:02:39]} 17. Ncd5 {[%clk 0:02:17]}  Bxd5 {[%clk 0:02:22]} 18. Nxd5 {[%clk 0:02:18]}  Nxd5 {[%clk 0:02:22]} 19. exd5 {[%clk 0:02:18]}  Na4 {[%clk 0:02:19]} 20. c3 {[%clk 0:02:14]}  b4 {[%clk 0:02:12]} 21. cxb4 {[%clk 0:01:57]}  Bxb2 {[%clk 0:01:51]} 22. Bc2 {[%clk 0:01:56]}  Bc3 {[%clk 0:01:50]} 23. Bxa4+ {[%clk 0:01:55]}  Kf8 {[%clk 0:01:50]} 24. Bxh6+ {[%clk 0:01:52]}  Rxh6 {[%clk 0:01:37]} 25. Qxh6+ {[%clk 0:01:53]}  Kg8 {[%clk 0:01:37]} 26. Bc2 {[%clk 0:01:53]}  Bg7 {[%clk 0:01:25]} 27. Qh7+ {[%clk 0:01:52]}  Kf8 {[%clk 0:01:25]} 28. h6 {[%clk 0:01:52]}  Bc3 {[%clk 0:01:16]} 29. Rhf1 {[%clk 0:01:46]}  f6 {[%clk 0:01:03]} 30. Qh8+ {[%clk 0:01:36]}  Kf7 {[%clk 0:01:04]} 31. Bg6+ {[%clk 0:01:37]}  Kxg6 {[%clk 0:01:03]} 32. Qg7# {[%clk 0:01:38]} 1-0


[Site "https://www.chess.com"]

[Event "Titled Tuesday Blitz May 4 2021"]
[White "Weetik, Vjacheslav"]
[Black "freshfoodcompany"]
[WhiteFideId "4153472"]
[WhiteElo "2469"]
[BlackElo "2378"]
[Result "1-0"]
[Round "01"]
[TimeControl "180+1"]
[Date "2021.05.04"]
[WhiteClock "0:00:10"]
[BlackClock "0:00:49"]

1. d4 {[%clk 0:02:55]}  d5 {[%clk 0:02:59]} 2. Bf4 {[%clk 0:02:51]}  c5 {[%clk 0:02:59]} 3. e3 {[%clk 0:02:51]}  Nc6 {[%clk 0:02:58]} 4. c3 {[%clk 0:02:51]}  Nf6 {[%clk 0:02:59]} 5. Nd2 {[%clk 0:02:49]}  Bf5 {[%clk 0:02:57]} 6. Ngf3 {[%clk 0:02:44]}  e6 {[%clk 0:02:56]} 7. Nh4 {[%clk 0:02:44]}  Bg4 {[%clk 0:02:54]} 8. Qb3 {[%clk 0:02:44]}  Qb6 {[%clk 0:02:51]} 9. h3 {[%clk 0:02:43]}  Bh5 {[%clk 0:02:50]} 10. g4 {[%clk 0:02:43]}  Bg6 {[%clk 0:02:50]} 11. Nxg6 {[%clk 0:02:43]}  hxg6 {[%clk 0:02:51]} 12. Be2 {[%clk 0:02:43]}  c4 {[%clk 0:02:40]} 13. Qc2 {[%clk 0:02:43]}  Qd8 {[%clk 0:02:31]} 14. b3 {[%clk 0:02:39]}  b5 {[%clk 0:02:29]} 15. Kf1 {[%clk 0:02:34]}  Bd6 {[%clk 0:02:28]} 16. Bxd6 {[%clk 0:02:33]}  Qxd6 {[%clk 0:02:29]} 17. a4 {[%clk 0:02:34]}  cxb3 {[%clk 0:02:25]} 18. Qxb3 {[%clk 0:02:25]}  bxa4 {[%clk 0:02:20]} 19. Qxa4 {[%clk 0:02:24]}  O-O {[%clk 0:02:17]} 20. Kg2 {[%clk 0:02:24]}  e5 {[%clk 0:02:15]} 21. Rab1 {[%clk 0:01:55]}  Rab8 {[%clk 0:02:07]} 22. Rb5 {[%clk 0:01:47]}  exd4 {[%clk 0:01:58]} 23. cxd4 {[%clk 0:01:46]}  Rxb5 {[%clk 0:01:56]} 24. Bxb5 {[%clk 0:01:45]}  Qb4 {[%clk 0:01:44]} 25. Qxb4 {[%clk 0:01:39]}  Nxb4 {[%clk 0:01:45]} 26. Ra1 {[%clk 0:01:39]}  Rb8 {[%clk 0:01:39]} 27. Be2 {[%clk 0:01:32]}  Rc8 {[%clk 0:01:36]} 28. Bd1 {[%clk 0:01:24]}  Rc7 {[%clk 0:01:27]} 29. Ra4 {[%clk 0:00:43]}  Nd3 {[%clk 0:01:21]} 30. Be2 {[%clk 0:00:34]}  Nb2 {[%clk 0:01:06]} 31. Rb4 {[%clk 0:00:16]}  Rc2 {[%clk 0:01:06]} 32. Nf3 {[%clk 0:00:11]}  Rxe2 {[%clk 0:01:05]} 33. Rb8+ {[%clk 0:00:11]}  Kh7 {[%clk 0:00:55]} 34. Ng5+ {[%clk 0:00:11]}  Kh6 {[%clk 0:00:49]} 35. Nxf7+ {[%clk 0:00:10]} 1-0


[Site "https://www.chess.com"]

[Event "Titled Tuesday Blitz May 4 2021"]
[White "Yang, Kaiqi"]
[Black "Obsivac, Josef"]
[WhiteFideId "8604398"]
[BlackFideId "303690"]
[WhiteElo "2373"]
[BlackElo "2199"]
[Result "1-0"]
[Round "01"]
[TimeControl "180+1"]
[Date "2021.05.04"]
[WhiteClock "0:00:22"]
[BlackClock "0:00:06"]

1. d4 {[%clk 0:02:58]}  Nf6 {[%clk 0:02:59]} 2. Nf3 {[%clk 0:02:57]}  g6 {[%clk 0:02:56]} 3. Nbd2 {[%clk 0:02:57]}  Bg7 {[%clk 0:02:56]} 4. e4 {[%clk 0:02:57]}  d6 {[%clk 0:02:55]} 5. Bb5+ {[%clk 0:02:57]}  c6 {[%clk 0:02:54]} 6. Bd3 {[%clk 0:02:57]}  O-O {[%clk 0:02:52]} 7. O-O {[%clk 0:02:56]}  Nbd7 {[%clk 0:02:49]} 8. Re1 {[%clk 0:02:55]}  e5 {[%clk 0:02:49]} 9. c3 {[%clk 0:02:55]}  Qc7 {[%clk 0:02:43]} 10. a4 {[%clk 0:02:54]}  a5 {[%clk 0:02:42]} 11. Qc2 {[%clk 0:02:53]}  Re8 {[%clk 0:02:40]} 12. dxe5 {[%clk 0:02:47]}  dxe5 {[%clk 0:02:39]} 13. Bf1 {[%clk 0:02:42]}  Nc5 {[%clk 0:02:32]} 14. h3 {[%clk 0:02:41]}  Nh5 {[%clk 0:02:28]} 15. Nc4 {[%clk 0:02:31]}  Nf4 {[%clk 0:02:09]} 16. Kh2 {[%clk 0:02:25]}  h6 {[%clk 0:02:00]} 17. g3 {[%clk 0:02:22]}  Nfe6 {[%clk 0:02:00]} 18. Be3 {[%clk 0:02:20]}  Nd7 {[%clk 0:01:47]} 19. Rad1 {[%clk 0:02:16]}  Bf8 {[%clk 0:01:30]} 20. Rd2 {[%clk 0:02:06]}  b5 {[%clk 0:01:27]} 21. Na3 {[%clk 0:01:54]}  Rb8 {[%clk 0:01:25]} 22. axb5 {[%clk 0:01:49]}  cxb5 {[%clk 0:01:24]} 23. Nxb5 {[%clk 0:01:47]}  Qb7 {[%clk 0:01:14]} 24. Red1 {[%clk 0:01:40]}  Ndc5 {[%clk 0:01:14]} 25. Rd5 {[%clk 0:01:37]}  a4 {[%clk 0:01:10]} 26. Nxe5 {[%clk 0:01:35]}  Nb3 {[%clk 0:00:49]} 27. Nd7 {[%clk 0:01:27]}  Bxd7 {[%clk 0:00:39]} 28. Rxd7 {[%clk 0:01:28]}  Qc6 {[%clk 0:00:35]} 29. Na7 {[%clk 0:01:23]}  Ned4 {[%clk 0:00:16]} 30. R7xd4 {[%clk 0:01:00]}  Nxd4 {[%clk 0:00:14]} 31. Rxd4 {[%clk 0:00:51]}  Qb7 {[%clk 0:00:13]} 32. Rxa4 {[%clk 0:00:48]}  Qxb2 {[%clk 0:00:10]} 33. Qxb2 {[%clk 0:00:48]}  Rxb2 {[%clk 0:00:10]} 34. Nb5 {[%clk 0:00:38]}  Rb8 {[%clk 0:00:07]} 35. c4 {[%clk 0:00:37]}  Rc2 {[%clk 0:00:06]} 36. Ra7 {[%clk 0:00:36]}  Rc8 {[%clk 0:00:06]} 37. e5 {[%clk 0:00:33]}  Bc5 {[%clk 0:00:06]} 38. Bxc5 {[%clk 0:00:30]}  Rxc5 {[%clk 0:00:06]} 39. Kg1 {[%clk 0:00:27]}  Rxe5 {[%clk 0:00:06]} 40. Ra1 {[%clk 0:00:24]}  Rf5 {[%clk 0:00:06]} 41. Nd4 {[%clk 0:00:22]} 1-0


[Site "https://www.chess.com"]

[Event "Titled Tuesday Blitz May 4 2021"]
[White "Yoo, Christopher Woojin"]
[Black "Kusa, Jakub"]
[WhiteFideId "30909694"]
[BlackFideId "395595"]
[WhiteElo "2009"]
[BlackElo "2053"]
[Result "1-0"]
[Round "01"]
[TimeControl "180+1"]
[Date "2021.05.04"]
[WhiteClock "0:00:03"]
[BlackClock "0:00:02"]

1. d4 {[%clk 0:03:00]}  Nf6 {[%clk 0:02:58]} 2. Nf3 {[%clk 0:02:58]}  e6 {[%clk 0:02:58]} 3. c4 {[%clk 0:02:51]}  d5 {[%clk 0:02:57]} 4. Nc3 {[%clk 0:02:47]}  Nbd7 {[%clk 0:02:56]} 5. cxd5 {[%clk 0:02:43]}  exd5 {[%clk 0:02:53]} 6. Bf4 {[%clk 0:02:41]}  c6 {[%clk 0:02:51]} 7. e3 {[%clk 0:02:29]}  Be7 {[%clk 0:02:46]} 8. h3 {[%clk 0:02:27]}  O-O {[%clk 0:02:39]} 9. Qc2 {[%clk 0:02:25]}  Re8 {[%clk 0:02:31]} 10. Bd3 {[%clk 0:02:23]}  g6 {[%clk 0:02:25]} 11. O-O {[%clk 0:02:23]}  Nb6 {[%clk 0:02:21]} 12. Rfe1 {[%clk 0:01:37]}  Be6 {[%clk 0:02:19]} 13. a3 {[%clk 0:01:29]}  a5 {[%clk 0:02:08]} 14. b3 {[%clk 0:01:02]}  Bd6 {[%clk 0:02:05]} 15. Bg5 {[%clk 0:00:53]}  Be7 {[%clk 0:02:05]} 16. Qb2 {[%clk 0:00:50]}  Nh5 {[%clk 0:01:39]} 17. Bxe7 {[%clk 0:00:47]}  Qxe7 {[%clk 0:01:40]} 18. b4 {[%clk 0:00:47]}  axb4 {[%clk 0:01:28]} 19. axb4 {[%clk 0:00:35]}  Qf6 {[%clk 0:01:26]} 20. b5 {[%clk 0:00:33]}  Rxa1 {[%clk 0:00:58]} 21. Rxa1 {[%clk 0:00:30]}  cxb5 {[%clk 0:00:53]} 22. Qxb5 {[%clk 0:00:25]}  Bd7 {[%clk 0:00:50]} 23. Nxd5 {[%clk 0:00:23]}  Qd6 {[%clk 0:00:45]} 24. Qxb6 {[%clk 0:00:20]}  Qxd5 {[%clk 0:00:45]} 25. Ra5 {[%clk 0:00:14]}  Qc6 {[%clk 0:00:17]} 26. Qxc6 {[%clk 0:00:13]}  Bxc6 {[%clk 0:00:16]} 27. Ne5 {[%clk 0:00:13]}  Nf6 {[%clk 0:00:15]} 28. Rc5 {[%clk 0:00:11]}  Nd7 {[%clk 0:00:04]} 29. Nxd7 {[%clk 0:00:11]}  Bxd7 {[%clk 0:00:04]} 30. Rc7 {[%clk 0:00:11]}  Bc6 {[%clk 0:00:04]} 31. Bc4 {[%clk 0:00:12]}  Rf8 {[%clk 0:00:04]} 32. d5 {[%clk 0:00:12]}  Ba4 {[%clk 0:00:04]} 33. Rxb7 {[%clk 0:00:12]}  Kg7 {[%clk 0:00:04]} 34. d6 {[%clk 0:00:12]}  Kf6 {[%clk 0:00:05]} 35. f4 {[%clk 0:00:07]}  g5 {[%clk 0:00:04]} 36. g3 {[%clk 0:00:07]}  h5 {[%clk 0:00:03]} 37. e4 {[%clk 0:00:06]}  h4 {[%clk 0:00:02]} 38. e5+ {[%clk 0:00:06]}  Kg6 {[%clk 0:00:03]} 39. Bd3+ {[%clk 0:00:04]}  Kh6 {[%clk 0:00:02]} 40. e6 {[%clk 0:00:02]}  hxg3 {[%clk 0:00:02]} 41. e7 {[%clk 0:00:02]}  Rc8 {[%clk 0:00:02]} 42. d7 {[%clk 0:00:02]}  Rc1+ {[%clk 0:00:01]} 43. Bf1 {[%clk 0:00:02]}  Bc6 {[%clk 0:00:02]} 44. d8=Q {[%clk 0:00:02]}  g2 {[%clk 0:00:01]} 45. Qh8+ {[%clk 0:00:02]}  Kg6 {[%clk 0:00:02]} 46. Qg8+ {[%clk 0:00:03]}  Kf5 {[%clk 0:00:02]} 47. Qxg5+ {[%clk 0:00:03]}  Ke6 {[%clk 0:00:02]} 48. Qe5# {[%clk 0:00:03]} 1-0


[Site "https://www.chess.com"]

[Event "Titled Tuesday Blitz May 4 2021"]
[White "Zaichenko, Daria"]
[Black "Jacobson, Aaron"]
[WhiteFideId "4197453"]
[BlackFideId "2089912"]
[WhiteElo "2039"]
[BlackElo "2260"]
[Result "1-0"]
[Round "01"]
[TimeControl "180+1"]
[Date "2021.05.04"]
[WhiteClock "0:00:12"]
[BlackClock "0:00:02"]

1. e4 {[%clk 0:03:00]}  d5 {[%clk 0:02:55]} 2. exd5 {[%clk 0:03:00]}  Nf6 {[%clk 0:02:55]} 3. Bb5+ {[%clk 0:02:57]}  Nbd7 {[%clk 0:02:55]} 4. c4 {[%clk 0:02:56]}  a6 {[%clk 0:02:56]} 5. Bxd7+ {[%clk 0:02:56]}  Qxd7 {[%clk 0:02:56]} 6. Nf3 {[%clk 0:02:56]}  e6 {[%clk 0:02:49]} 7. Qe2 {[%clk 0:02:55]}  Be7 {[%clk 0:02:37]} 8. dxe6 {[%clk 0:02:51]}  Qxe6 {[%clk 0:02:38]} 9. Qxe6 {[%clk 0:02:50]}  Bxe6 {[%clk 0:02:39]} 10. d3 {[%clk 0:02:49]}  O-O-O {[%clk 0:02:25]} 11. Ne5 {[%clk 0:02:36]}  Ng4 {[%clk 0:02:10]} 12. Nxg4 {[%clk 0:02:30]}  Bxg4 {[%clk 0:02:11]} 13. O-O {[%clk 0:02:22]}  Rxd3 {[%clk 0:02:00]} 14. Nc3 {[%clk 0:02:20]}  Be6 {[%clk 0:01:58]} 15. Be3 {[%clk 0:02:09]}  Bxc4 {[%clk 0:01:56]} 16. Rfe1 {[%clk 0:02:09]}  Bb4 {[%clk 0:01:39]} 17. a3 {[%clk 0:02:07]}  Bd6 {[%clk 0:01:24]} 18. Rad1 {[%clk 0:01:55]}  Rxd1 {[%clk 0:01:20]} 19. Rxd1 {[%clk 0:01:55]}  f6 {[%clk 0:01:15]} 20. f4 {[%clk 0:01:52]}  Re8 {[%clk 0:01:13]} 21. Kf2 {[%clk 0:01:51]}  g5 {[%clk 0:00:59]} 22. fxg5 {[%clk 0:01:40]}  fxg5 {[%clk 0:00:59]} 23. Bxg5 {[%clk 0:01:39]}  Rf8+ {[%clk 0:00:43]} 24. Kg1 {[%clk 0:01:37]}  Bc5+ {[%clk 0:00:40]} 25. Kh1 {[%clk 0:01:36]}  b5 {[%clk 0:00:36]} 26. Ne4 {[%clk 0:01:33]}  Bb6 {[%clk 0:00:33]} 27. Nf6 {[%clk 0:01:26]}  h6 {[%clk 0:00:27]} 28. Nd7 {[%clk 0:01:25]}  Rf2 {[%clk 0:00:13]} 29. Nxb6+ {[%clk 0:01:19]}  cxb6 {[%clk 0:00:13]} 30. Be3 {[%clk 0:01:14]}  Rxb2 {[%clk 0:00:12]} 31. Bxb6 {[%clk 0:01:14]}  h5 {[%clk 0:00:07]} 32. g3 {[%clk 0:01:09]}  Be2 {[%clk 0:00:05]} 33. Rc1+ {[%clk 0:01:04]}  Kb7 {[%clk 0:00:05]} 34. Ba5 {[%clk 0:01:04]}  Bf3+ {[%clk 0:00:05]} 35. Kg1 {[%clk 0:01:03]}  Rg2+ {[%clk 0:00:06]} 36. Kf1 {[%clk 0:01:03]}  Rxh2 {[%clk 0:00:06]} 37. Rc7+ {[%clk 0:01:02]}  Kb8 {[%clk 0:00:06]} 38. Rf7 {[%clk 0:01:00]}  Bg4 {[%clk 0:00:05]} 39. Rf2 {[%clk 0:00:39]}  Rh1+ {[%clk 0:00:03]} 40. Kg2 {[%clk 0:00:40]}  Ra1 {[%clk 0:00:04]} 41. Bb4 {[%clk 0:00:38]}  a5 {[%clk 0:00:03]} 42. Bd6+ {[%clk 0:00:34]}  Kb7 {[%clk 0:00:03]} 43. Rc2 {[%clk 0:00:33]}  Kb6 {[%clk 0:00:03]} 44. Bc5+ {[%clk 0:00:32]}  Ka6 {[%clk 0:00:03]} 45. Bd6 {[%clk 0:00:32]}  Bf5 {[%clk 0:00:02]} 46. Rc5 {[%clk 0:00:30]}  Be4+ {[%clk 0:00:02]} 47. Kf2 {[%clk 0:00:29]}  Ra2+ {[%clk 0:00:02]} 48. Ke3 {[%clk 0:00:29]}  Bg6 {[%clk 0:00:02]} 49. Rg5 {[%clk 0:00:28]}  Be8 {[%clk 0:00:01]} 50. Rg8 {[%clk 0:00:25]}  Bc6 {[%clk 0:00:02]} 51. Rg5 {[%clk 0:00:23]}  Kb7 {[%clk 0:00:01]} 52. Rxh5 {[%clk 0:00:19]}  b4 {[%clk 0:00:02]} 53. axb4 {[%clk 0:00:19]}  a4 {[%clk 0:00:02]} 54. Ra5 {[%clk 0:00:16]}  Ra1 {[%clk 0:00:01]} 55. Kd2 {[%clk 0:00:16]}  a3 {[%clk 0:00:01]} 56. Kc3 {[%clk 0:00:16]}  a2 {[%clk 0:00:01]} 57. Kb2 {[%clk 0:00:16]}  Rd1 {[%clk 0:00:02]} 58. Kxa2 {[%clk 0:00:12]} 1-0


[Site "https://www.chess.com"]

[Event "Titled Tuesday Blitz May 4 2021"]
[White "elcandado"]
[Black "Cuevas, Alex"]
[BlackFideId "114260"]
[WhiteElo "2624"]
[BlackElo "2289"]
[Result "1-0"]
[Round "01"]
[TimeControl "180+1"]
[Date "2021.05.04"]
[WhiteClock "0:00:59"]
[BlackClock "0:00:04"]

1. d4 {[%clk 0:03:00]}  Nf6 {[%clk 0:02:54]} 2. Bf4 {[%clk 0:02:59]}  e6 {[%clk 0:02:50]} 3. e3 {[%clk 0:02:59]}  c5 {[%clk 0:02:48]} 4. c3 {[%clk 0:02:58]}  Qb6 {[%clk 0:02:46]} 5. Qb3 {[%clk 0:02:57]}  d5 {[%clk 0:02:38]} 6. Nd2 {[%clk 0:02:52]}  Nc6 {[%clk 0:02:37]} 7. Ngf3 {[%clk 0:02:49]}  Be7 {[%clk 0:02:30]} 8. h3 {[%clk 0:02:48]}  O-O {[%clk 0:02:29]} 9. Be2 {[%clk 0:02:47]}  Qxb3 {[%clk 0:02:05]} 10. axb3 {[%clk 0:02:45]}  b6 {[%clk 0:02:00]} 11. Ba6 {[%clk 0:02:35]}  cxd4 {[%clk 0:01:50]} 12. exd4 {[%clk 0:02:33]}  Ne4 {[%clk 0:01:48]} 13. Nxe4 {[%clk 0:02:23]}  dxe4 {[%clk 0:01:47]} 14. Ne5 {[%clk 0:02:22]}  Nxe5 {[%clk 0:01:41]} 15. Bxe5 {[%clk 0:02:23]}  f5 {[%clk 0:01:36]} 16. Bxc8 {[%clk 0:02:20]}  Rfxc8 {[%clk 0:01:35]} 17. Ra6 {[%clk 0:02:21]}  Rf8 {[%clk 0:00:35]} 18. Ke2 {[%clk 0:02:17]}  f4 {[%clk 0:00:33]} 19. Rha1 {[%clk 0:02:15]}  f3+ {[%clk 0:00:32]} 20. Kf1 {[%clk 0:02:16]}  fxg2+ {[%clk 0:00:25]} 21. Kxg2 {[%clk 0:02:17]}  Bh4 {[%clk 0:00:22]} 22. Bg3 {[%clk 0:02:08]}  Bxg3 {[%clk 0:00:20]} 23. fxg3 {[%clk 0:02:09]}  Rf3 {[%clk 0:00:20]} 24. Rf1 {[%clk 0:01:29]}  Raf8 {[%clk 0:00:13]} 25. Rxf3 {[%clk 0:01:29]}  Rxf3 {[%clk 0:00:13]} 26. Rxa7 {[%clk 0:01:27]}  Rd3 {[%clk 0:00:13]} 27. Kf2 {[%clk 0:01:13]}  Rd2+ {[%clk 0:00:11]} 28. Ke3 {[%clk 0:01:12]}  Rxb2 {[%clk 0:00:11]} 29. b4 {[%clk 0:01:12]}  Rb3 {[%clk 0:00:11]} 30. Rc7 {[%clk 0:01:11]}  Rb1 {[%clk 0:00:10]} 31. Kxe4 {[%clk 0:01:11]}  Re1+ {[%clk 0:00:10]} 32. Kf4 {[%clk 0:01:09]}  Re2 {[%clk 0:00:07]} 33. b5 {[%clk 0:01:04]}  Rc2 {[%clk 0:00:05]} 34. c4 {[%clk 0:01:02]}  Rf2+ {[%clk 0:00:04]} 35. Ke5 {[%clk 0:01:01]}  Re2+ {[%clk 0:00:04]} 36. Kd6 {[%clk 0:00:59]}  Rd2 {[%clk 0:00:04]} 37. Kxe6 {[%clk 0:01:00]}  Rxd4 {[%clk 0:00:04]} 38. Rc8+ {[%clk 0:00:59]} 1-0


[Site "https://www.chess.com"]